Workbook

Sheet AL I BM боковое
A2: Секционные радиаторы SPL ALHeat / ALEco / ALPro / BMHeat / BMEco / BMPro с боковым подключением
A29: SPL AL / BM | D29: Длина, мм | E29: Высота, мм | F29: Глубина секции, мм | G29: ПРИМЕЧАНИЕ
D30: 800 | E30: 403 | F30: 78.5
D31: Необходимая мощность, Вт | E31: ∆t | F31: LMTD
D32: 1500 | E32: =(D34+E34)/2-F34 -> 70 | F32: =(D34-E34)/LN((D34-F34)/(E34-F34)) -> 68.91512662
D33: tвх | E33: tвых | F33: tвн
D34: 105 | E34: 75 | F34: 20
A37: ALHeat | B37: Высота (мм) | C37: Глубина секции | D37: Модель | E37: Подключение | F37: Артикул заказа | O37: Количество секций, шт
G38: 4 | H38: 5 | I38: 6 | J38: 7 | K38: 8 | L38: 9 | M38: 10 | N38: 11 | O38: 12 | P38: 13 | Q38: 14 | R38: 15 | S38: 16 | T38: 17 | U38: 18 | V38: 19 | W38: 20
B39: Длина, мм | G39: =G38*$C$40 -> 360 | H39: =H38*$C$40 -> 450 | I39: =I38*$C$40 -> 540 | J39: =J38*$C$40 -> 630 | K39: =K38*$C$40 -> 720 | L39: =L38*$C$40 -> 810 | M39: =M38*$C$40 -> 900 | N39: =N38*$C$40 -> 990 | O39: =O38*$C$40 -> 1080 | P39: =P38*$C$40 -> 1170 | Q39: =Q38*$C$40 -> 1260 | R39: =R38*$C$40 -> 1350 | S39: =S38*$C$40 -> 1440 | T39: =T38*$C$40 -> 1530 | U39: =U38*$C$40 -> 1620 | V39: =V38*$C$40 -> 1710 | W39: =W38*$C$40 -> 1800
B40: 575 | C40: 90 | D40: ALHeat500.90 | E40: боковое | F40: ALHeat500.90/X | G40: ='t AL I BM боковое'!G39*'График AL I BM боковое'!$B$4 -> 724 | H40: ='t AL I BM боковое'!H39*'График AL I BM боковое'!$B$4 -> 905 | I40: ='t AL I BM боковое'!I39*'График AL I BM боковое'!$B$4 -> 1086 | J40: ='t AL I BM боковое'!J39*'График AL I BM боковое'!$B$4 -> 1267 | K40: ='t AL I BM боковое'!K39*'График AL I BM боковое'!$B$4 -> 1448 | L40: ='t AL I BM боковое'!L39*'График AL I BM боковое'!$B$4 -> 1629 | M40: ='t AL I BM боковое'!M39*'График AL I BM боковое'!$B$4 -> 1810 | N40: ='t AL I BM боковое'!N39*'График AL I BM боковое'!$B$4 -> 1991 | O40: ='t AL I BM боковое'!O39*'График AL I BM боковое'!$B$4 -> 2172 | P40: ='t AL I BM боковое'!P39*'График AL I BM боковое'!$B$4 -> 2353 | Q40: ='t AL I BM боковое'!Q39*'График AL I BM боковое'!$B$4 -> 2534 | R40: ='t AL I BM боковое'!R39*'График AL I BM боковое'!$B$4 -> 2715 | S40: ='t AL I BM боковое'!S39*'График AL I BM боковое'!$B$4 -> 2896 | T40: ='t AL I BM боковое'!T39*'График AL I BM боковое'!$B$4 -> 3077 | U40: ='t AL I BM боковое'!U39*'График AL I BM боковое'!$B$4 -> 3258 | V40: ='t AL I BM боковое'!V39*'График AL I BM боковое'!$B$4 -> 3439 | W40: ='t AL I BM боковое'!W39*'График AL I BM боковое'!$B$4 -> 3620
A44: ALEco | B44: Высота (мм) | C44: Глубина секции | D44: Модель | E44: Подключение | F44: Артикул заказа | O44: Количество секций, шт
G45: 4 | H45: 5 | I45: 6 | J45: 7 | K45: 8 | L45: 9 | M45: 10 | N45: 11 | O45: 12 | P45: 13 | Q45: 14 | R45: 15 | S45: 16 | T45: 17 | U45: 18 | V45: 19 | W45: 20
B46: Длина, мм | G46: =G45*$C$47 -> 312 | H46: =H45*$C$47 -> 390 | I46: =I45*$C$47 -> 468 | J46: =J45*$C$47 -> 546 | K46: =K45*$C$47 -> 624 | L46: =L45*$C$47 -> 702 | M46: =M45*$C$47 -> 780 | N46: =N45*$C$47 -> 858 | O46: =O45*$C$47 -> 936 | P46: =P45*$C$47 -> 1014 | Q46: =Q45*$C$47 -> 1092 | R46: =R45*$C$47 -> 1170 | S46: =S45*$C$47 -> 1248 | T46: =T45*$C$47 -> 1326 | U46: =U45*$C$47 -> 1404 | V46: =V45*$C$47 -> 1482 | W46: =W45*$C$47 -> 1560
B47: 427 | C47: 78 | D47: ALEco350.80 | E47: боковое | F47: ALEco350.80/X | G47: ='t AL I BM боковое'!G45*'График AL I BM боковое'!$B$4 -> 440 | H47: ='t AL I BM боковое'!H45*'График AL I BM боковое'!$B$4 -> 550 | I47: ='t AL I BM боковое'!I45*'График AL I BM боковое'!$B$4 -> 660 | J47: ='t AL I BM боковое'!J45*'График AL I BM боковое'!$B$4 -> 770 | K47: ='t AL I BM боковое'!K45*'График AL I BM боковое'!$B$4 -> 880 | L47: ='t AL I BM боковое'!L45*'График AL I BM боковое'!$B$4 -> 990 | M47: ='t AL I BM боковое'!M45*'График AL I BM боковое'!$B$4 -> 1100 | N47: ='t AL I BM боковое'!N45*'График AL I BM боковое'!$B$4 -> 1210 | O47: ='t AL I BM боковое'!O45*'График AL I BM боковое'!$B$4 -> 1320 | P47: ='t AL I BM боковое'!P45*'График AL I BM боковое'!$B$4 -> 1430 | Q47: ='t AL I BM боковое'!Q45*'График AL I BM боковое'!$B$4 -> 1540 | R47: ='t AL I BM боковое'!R45*'График AL I BM боковое'!$B$4 -> 1650 | S47: ='t AL I BM боковое'!S45*'График AL I BM боковое'!$B$4 -> 1760 | T47: ='t AL I BM боковое'!T45*'График AL I BM боковое'!$B$4 -> 1870 | U47: ='t AL I BM боковое'!U45*'График AL I BM боковое'!$B$4 -> 1980 | V47: ='t AL I BM боковое'!V45*'График AL I BM боковое'!$B$4 -> 2090 | W47: ='t AL I BM боковое'!W45*'График AL I BM боковое'!$B$4 -> 2200
B49: Длина, мм | G49: =G45*$C$50 -> 320 | H49: =H45*$C$50 -> 400 | I49: =I45*$C$50 -> 480 | J49: =J45*$C$50 -> 560 | K49: =K45*$C$50 -> 640 | L49: =L45*$C$50 -> 720 | M49: =M45*$C$50 -> 800 | N49: =N45*$C$50 -> 880 | O49: =O45*$C$50 -> 960 | P49: =P45*$C$50 -> 1040 | Q49: =Q45*$C$50 -> 1120 | R49: =R45*$C$50 -> 1200 | S49: =S45*$C$50 -> 1280 | T49: =T45*$C$50 -> 1360 | U49: =U45*$C$50 -> 1440 | V49: =V45*$C$50 -> 1520 | W49: =W45*$C$50 -> 1600
B50: 576 | C50: 80 | D50: ALEco500.80 | E50: боковое | F50: ALEco500.80/X | G50: ='t AL I BM боковое'!G47*'График AL I BM боковое'!$B$4 -> 604 | H50: ='t AL I BM боковое'!H47*'График AL I BM боковое'!$B$4 -> 755 | I50: ='t AL I BM боковое'!I47*'График AL I BM боковое'!$B$4 -> 906 | J50: ='t AL I BM боковое'!J47*'График AL I BM боковое'!$B$4 -> 1057 | K50: ='t AL I BM боковое'!K47*'График AL I BM боковое'!$B$4 -> 1208 | L50: ='t AL I BM боковое'!L47*'График AL I BM боковое'!$B$4 -> 1359 | M50: ='t AL I BM боковое'!M47*'График AL I BM боковое'!$B$4 -> 1510 | N50: ='t AL I BM боковое'!N47*'График AL I BM боковое'!$B$4 -> 1661 | O50: ='t AL I BM боковое'!O47*'График AL I BM боковое'!$B$4 -> 1812 | P50: ='t AL I BM боковое'!P47*'График AL I BM боковое'!$B$4 -> 1963 | Q50: ='t AL I BM боковое'!Q47*'График AL I BM боковое'!$B$4 -> 2114 | R50: ='t AL I BM боковое'!R47*'График AL I BM боковое'!$B$4 -> 2265 | S50: ='t AL I BM боковое'!S47*'График AL I BM боковое'!$B$4 -> 2416 | T50: ='t AL I BM боковое'!T47*'График AL I BM боковое'!$B$4 -> 2567 | U50: ='t AL I BM боковое'!U47*'График AL I BM боковое'!$B$4 -> 2718 | V50: ='t AL I BM боковое'!V47*'График AL I BM боковое'!$B$4 -> 2869 | W50: ='t AL I BM боковое'!W47*'График AL I BM боковое'!$B$4 -> 3020
B52: Длина, мм | G52: =G45*$C$53 -> 388 | H52: =H45*$C$53 -> 485 | I52: =I45*$C$53 -> 582 | J52: =J45*$C$53 -> 679 | K52: =K45*$C$53 -> 776 | L52: =L45*$C$53 -> 873 | M52: =M45*$C$53 -> 970 | N52: =N45*$C$53 -> 1067 | O52: =O45*$C$53 -> 1164 | P52: =P45*$C$53 -> 1261 | Q52: =Q45*$C$53 -> 1358 | R52: =R45*$C$53 -> 1455 | S52: =S45*$C$53 -> 1552 | T52: =T45*$C$53 -> 1649 | U52: =U45*$C$53 -> 1746 | V52: =V45*$C$53 -> 1843 | W52: =W45*$C$53 -> 1940
B53: 576 | C53: 97 | D53: ALEco500.96 | E53: боковое | F53: ALEco500.96/X | G53: ='t AL I BM боковое'!G49*'График AL I BM боковое'!$B$4 -> 628 | H53: ='t AL I BM боковое'!H49*'График AL I BM боковое'!$B$4 -> 785 | I53: ='t AL I BM боковое'!I49*'График AL I BM боковое'!$B$4 -> 942 | J53: ='t AL I BM боковое'!J49*'График AL I BM боковое'!$B$4 -> 1099 | K53: ='t AL I BM боковое'!K49*'График AL I BM боковое'!$B$4 -> 1256 | L53: ='t AL I BM боковое'!L49*'График AL I BM боковое'!$B$4 -> 1413 | M53: ='t AL I BM боковое'!M49*'График AL I BM боковое'!$B$4 -> 1570 | N53: ='t AL I BM боковое'!N49*'График AL I BM боковое'!$B$4 -> 1727 | O53: ='t AL I BM боковое'!O49*'График AL I BM боковое'!$B$4 -> 1884 | P53: ='t AL I BM боковое'!P49*'График AL I BM боковое'!$B$4 -> 2041 | Q53: ='t AL I BM боковое'!Q49*'График AL I BM боковое'!$B$4 -> 2198 | R53: ='t AL I BM боковое'!R49*'График AL I BM боковое'!$B$4 -> 2355 | S53: ='t AL I BM боковое'!S49*'График AL I BM боковое'!$B$4 -> 2512 | T53: ='t AL I BM боковое'!T49*'График AL I BM боковое'!$B$4 -> 2669 | U53: ='t AL I BM боковое'!U49*'График AL I BM боковое'!$B$4 -> 2826 | V53: ='t AL I BM боковое'!V49*'График AL I BM боковое'!$B$4 -> 2983 | W53: ='t AL I BM боковое'!W49*'График AL I BM боковое'!$B$4 -> 3140
A57: ALPro | B57: Высота (мм) | C57: Глубина секции | D57: Модель | E57: Подключение | F57: Артикул заказа | O57: Количество секций, шт
G58: 4 | H58: 5 | I58: 6 | J58: 7 | K58: 8 | L58: 9 | M58: 10 | N58: 11 | O58: 12 | P58: 13 | Q58: 14 | R58: 15 | S58: 16 | T58: 17 | U58: 18 | V58: 19 | W58: 20
B59: Длина, мм | G59: =G58*$C$60 -> 384 | H59: =H58*$C$60 -> 480 | I59: =I58*$C$60 -> 576 | J59: =J58*$C$60 -> 672 | K59: =K58*$C$60 -> 768 | L59: =L58*$C$60 -> 864 | M59: =M58*$C$60 -> 960 | N59: =N58*$C$60 -> 1056 | O59: =O58*$C$60 -> 1152 | P59: =P58*$C$60 -> 1248 | Q59: =Q58*$C$60 -> 1344 | R59: =R58*$C$60 -> 1440 | S59: =S58*$C$60 -> 1536 | T59: =T58*$C$60 -> 1632 | U59: =U58*$C$60 -> 1728 | V59: =V58*$C$60 -> 1824 | W59: =W58*$C$60 -> 1920
B60: 282 | C60: 96 | D60: ALPro200.96 | E60: боковое | F60: ALPro200.96/X | G60: ='t AL I BM боковое'!G55*'График AL I BM боковое'!$B$4 -> 360 | H60: ='t AL I BM боковое'!H55*'График AL I BM боковое'!$B$4 -> 450 | I60: ='t AL I BM боковое'!I55*'График AL I BM боковое'!$B$4 -> 540 | J60: ='t AL I BM боковое'!J55*'График AL I BM боковое'!$B$4 -> 630 | K60: ='t AL I BM боковое'!K55*'График AL I BM боковое'!$B$4 -> 720 | L60: ='t AL I BM боковое'!L55*'График AL I BM боковое'!$B$4 -> 810 | M60: ='t AL I BM боковое'!M55*'График AL I BM боковое'!$B$4 -> 900 | N60: ='t AL I BM боковое'!N55*'График AL I BM боковое'!$B$4 -> 990 | O60: ='t AL I BM боковое'!O55*'График AL I BM боковое'!$B$4 -> 1080 | P60: ='t AL I BM боковое'!P55*'График AL I BM боковое'!$B$4 -> 1170 | Q60: ='t AL I BM боковое'!Q55*'График AL I BM боковое'!$B$4 -> 1260 | R60: ='t AL I BM боковое'!R55*'График AL I BM боковое'!$B$4 -> 1350 | S60: ='t AL I BM боковое'!S55*'График AL I BM боковое'!$B$4 -> 1440 | T60: ='t AL I BM боковое'!T55*'График AL I BM боковое'!$B$4 -> 1530 | U60: ='t AL I BM боковое'!U55*'График AL I BM боковое'!$B$4 -> 1620 | V60: ='t AL I BM боковое'!V55*'График AL I BM боковое'!$B$4 -> 1710 | W60: ='t AL I BM боковое'!W55*'График AL I BM боковое'!$B$4 -> 1800
B62: Длина, мм | G62: =G58*$C$63 -> 320 | H62: =H58*$C$63 -> 400 | I62: =I58*$C$63 -> 480 | J62: =J58*$C$63 -> 560 | K62: =K58*$C$63 -> 640 | L62: =L58*$C$63 -> 720 | M62: =M58*$C$63 -> 800 | N62: =N58*$C$63 -> 880 | O62: =O58*$C$63 -> 960 | P62: =P58*$C$63 -> 1040 | Q62: =Q58*$C$63 -> 1120 | R62: =R58*$C$63 -> 1200 | S62: =S58*$C$63 -> 1280 | T62: =T58*$C$63 -> 1360 | U62: =U58*$C$63 -> 1440 | V62: =V58*$C$63 -> 1520 | W62: =W58*$C$63 -> 1600
B63: 420 | C63: 80 | D63: ALPro350.80 | E63: боковое | F63: ALPro350.80/X | G63: ='t AL I BM боковое'!G57*'График AL I BM боковое'!$B$4 -> 476 | H63: ='t AL I BM боковое'!H57*'График AL I BM боковое'!$B$4 -> 595 | I63: ='t AL I BM боковое'!I57*'График AL I BM боковое'!$B$4 -> 714 | J63: ='t AL I BM боковое'!J57*'График AL I BM боковое'!$B$4 -> 833 | K63: ='t AL I BM боковое'!K57*'График AL I BM боковое'!$B$4 -> 952 | L63: ='t AL I BM боковое'!L57*'График AL I BM боковое'!$B$4 -> 1071 | M63: ='t AL I BM боковое'!M57*'График AL I BM боковое'!$B$4 -> 1190 | N63: ='t AL I BM боковое'!N57*'График AL I BM боковое'!$B$4 -> 1309 | O63: ='t AL I BM боковое'!O57*'График AL I BM боковое'!$B$4 -> 1428 | P63: ='t AL I BM боковое'!P57*'График AL I BM боковое'!$B$4 -> 1547 | Q63: ='t AL I BM боковое'!Q57*'График AL I BM боковое'!$B$4 -> 1666 | R63: ='t AL I BM боковое'!R57*'График AL I BM боковое'!$B$4 -> 1785 | S63: ='t AL I BM боковое'!S57*'График AL I BM боковое'!$B$4 -> 1904 | T63: ='t AL I BM боковое'!T57*'График AL I BM боковое'!$B$4 -> 2023 | U63: ='t AL I BM боковое'!U57*'График AL I BM боковое'!$B$4 -> 2142 | V63: ='t AL I BM боковое'!V57*'График AL I BM боковое'!$B$4 -> 2261 | W63: ='t AL I BM боковое'!W57*'График AL I BM боковое'!$B$4 -> 2380
B65: Длина, мм | G65: =G58*$C$66 -> 320 | H65: =H58*$C$66 -> 400 | I65: =I58*$C$66 -> 480 | J65: =J58*$C$66 -> 560 | K65: =K58*$C$66 -> 640 | L65: =L58*$C$66 -> 720 | M65: =M58*$C$66 -> 800 | N65: =N58*$C$66 -> 880 | O65: =O58*$C$66 -> 960 | P65: =P58*$C$66 -> 1040 | Q65: =Q58*$C$66 -> 1120 | R65: =R58*$C$66 -> 1200 | S65: =S58*$C$66 -> 1280 | T65: =T58*$C$66 -> 1360 | U65: =U58*$C$66 -> 1440 | V65: =V58*$C$66 -> 1520 | W65: =W58*$C$66 -> 1600
B66: 568 | C66: 80 | D66: ALPro500.80 | E66: боковое | F66: ALPro500.80/X | G66: ='t AL I BM боковое'!G59*'График AL I BM боковое'!$B$4 -> 672 | H66: ='t AL I BM боковое'!H59*'График AL I BM боковое'!$B$4 -> 840 | I66: ='t AL I BM боковое'!I59*'График AL I BM боковое'!$B$4 -> 1008 | J66: ='t AL I BM боковое'!J59*'График AL I BM боковое'!$B$4 -> 1176 | K66: ='t AL I BM боковое'!K59*'График AL I BM боковое'!$B$4 -> 1344 | L66: ='t AL I BM боковое'!L59*'График AL I BM боковое'!$B$4 -> 1512 | M66: ='t AL I BM боковое'!M59*'График AL I BM боковое'!$B$4 -> 1680 | N66: ='t AL I BM боковое'!N59*'График AL I BM боковое'!$B$4 -> 1848 | O66: ='t AL I BM боковое'!O59*'График AL I BM боковое'!$B$4 -> 2016 | P66: ='t AL I BM боковое'!P59*'График AL I BM боковое'!$B$4 -> 2184 | Q66: ='t AL I BM боковое'!Q59*'График AL I BM боковое'!$B$4 -> 2352 | R66: ='t AL I BM боковое'!R59*'График AL I BM боковое'!$B$4 -> 2520 | S66: ='t AL I BM боковое'!S59*'График AL I BM боковое'!$B$4 -> 2688 | T66: ='t AL I BM боковое'!T59*'График AL I BM боковое'!$B$4 -> 2856 | U66: ='t AL I BM боковое'!U59*'График AL I BM боковое'!$B$4 -> 3024 | V66: ='t AL I BM боковое'!V59*'График AL I BM боковое'!$B$4 -> 3192 | W66: ='t AL I BM боковое'!W59*'График AL I BM боковое'!$B$4 -> 3360
B68: Длина, мм | G68: =G58*$C$69 -> 384 | H68: =H58*$C$69 -> 480 | I68: =I58*$C$69 -> 576 | J68: =J58*$C$69 -> 672 | K68: =K58*$C$69 -> 768 | L68: =L58*$C$69 -> 864 | M68: =M58*$C$69 -> 960 | N68: =N58*$C$69 -> 1056 | O68: =O58*$C$69 -> 1152 | P68: =P58*$C$69 -> 1248 | Q68: =Q58*$C$69 -> 1344 | R68: =R58*$C$69 -> 1440 | S68: =S58*$C$69 -> 1536 | T68: =T58*$C$69 -> 1632 | U68: =U58*$C$69 -> 1728 | V68: =V58*$C$69 -> 1824 | W68: =W58*$C$69 -> 1920
B69: 580 | C69: 96 | D69: ALPro500.96 | E69: боковое | F69: ALPro500.96/X | G69: ='t AL I BM боковое'!G61*'График AL I BM боковое'!$B$4 -> 692 | H69: ='t AL I BM боковое'!H61*'График AL I BM боковое'!$B$4 -> 865 | I69: ='t AL I BM боковое'!I61*'График AL I BM боковое'!$B$4 -> 1038 | J69: ='t AL I BM боковое'!J61*'График AL I BM боковое'!$B$4 -> 1211 | K69: ='t AL I BM боковое'!K61*'График AL I BM боковое'!$B$4 -> 1384 | L69: ='t AL I BM боковое'!L61*'График AL I BM боковое'!$B$4 -> 1557 | M69: ='t AL I BM боковое'!M61*'График AL I BM боковое'!$B$4 -> 1730 | N69: ='t AL I BM боковое'!N61*'График AL I BM боковое'!$B$4 -> 1903 | O69: ='t AL I BM боковое'!O61*'График AL I BM боковое'!$B$4 -> 2076 | P69: ='t AL I BM боковое'!P61*'График AL I BM боковое'!$B$4 -> 2249 | Q69: ='t AL I BM боковое'!Q61*'График AL I BM боковое'!$B$4 -> 2422 | R69: ='t AL I BM боковое'!R61*'График AL I BM боковое'!$B$4 -> 2595 | S69: ='t AL I BM боковое'!S61*'График AL I BM боковое'!$B$4 -> 2768 | T69: ='t AL I BM боковое'!T61*'График AL I BM боковое'!$B$4 -> 2941 | U69: ='t AL I BM боковое'!U61*'График AL I BM боковое'!$B$4 -> 3114 | V69: ='t AL I BM боковое'!V61*'График AL I BM боковое'!$B$4 -> 3287 | W69: ='t AL I BM боковое'!W61*'График AL I BM боковое'!$B$4 -> 3460
A73: BMHeat | B73: Высота (мм) | C73: Глубина секции | D73: Модель | E73: Подключение | F73: Артикул заказа | O73: Количество секций, шт
G74: 4 | H74: 5 | I74: 6 | J74: 7 | K74: 8 | L74: 9 | M74: 10 | N74: 11 | O74: 12 | P74: 13 | Q74: 14 | R74: 15 | S74: 16 | T74: 17 | U74: 18 | V74: 19 | W74: 20
B75: Длина, мм | G75: =G74*$C$76 -> 356 | H75: =H74*$C$76 -> 445 | I75: =I74*$C$76 -> 534 | J75: =J74*$C$76 -> 623 | K75: =K74*$C$76 -> 712 | L75: =L74*$C$76 -> 801 | M75: =M74*$C$76 -> 890 | N75: =N74*$C$76 -> 979 | O75: =O74*$C$76 -> 1068 | P75: =P74*$C$76 -> 1157 | Q75: =Q74*$C$76 -> 1246 | R75: =R74*$C$76 -> 1335 | S75: =S74*$C$76 -> 1424 | T75: =T74*$C$76 -> 1513 | U75: =U74*$C$76 -> 1602 | V75: =V74*$C$76 -> 1691 | W75: =W74*$C$76 -> 1780
B76: 415 | C76: 89 | D76: BMHeat350.90 | E76: боковое | F76: BMHeat350.90/X | G76: ='t AL I BM боковое'!G69*'График AL I BM боковое'!$B$4 -> 532 | H76: ='t AL I BM боковое'!H69*'График AL I BM боковое'!$B$4 -> 665 | I76: ='t AL I BM боковое'!I69*'График AL I BM боковое'!$B$4 -> 798 | J76: ='t AL I BM боковое'!J69*'График AL I BM боковое'!$B$4 -> 931 | K76: ='t AL I BM боковое'!K69*'График AL I BM боковое'!$B$4 -> 1064 | L76: ='t AL I BM боковое'!L69*'График AL I BM боковое'!$B$4 -> 1197 | M76: ='t AL I BM боковое'!M69*'График AL I BM боковое'!$B$4 -> 1330 | N76: ='t AL I BM боковое'!N69*'График AL I BM боковое'!$B$4 -> 1463 | O76: ='t AL I BM боковое'!O69*'График AL I BM боковое'!$B$4 -> 1596 | P76: ='t AL I BM боковое'!P69*'График AL I BM боковое'!$B$4 -> 1729 | Q76: ='t AL I BM боковое'!Q69*'График AL I BM боковое'!$B$4 -> 1862 | R76: ='t AL I BM боковое'!R69*'График AL I BM боковое'!$B$4 -> 1995 | S76: ='t AL I BM боковое'!S69*'График AL I BM боковое'!$B$4 -> 2128 | T76: ='t AL I BM боковое'!T69*'График AL I BM боковое'!$B$4 -> 2261 | U76: ='t AL I BM боковое'!U69*'График AL I BM боковое'!$B$4 -> 2394 | V76: ='t AL I BM боковое'!V69*'График AL I BM боковое'!$B$4 -> 2527 | W76: ='t AL I BM боковое'!W69*'График AL I BM боковое'!$B$4 -> 2660
B78: Длина, мм | G78: =G74*$C$79 -> 356 | H78: =H74*$C$79 -> 445 | I78: =I74*$C$79 -> 534 | J78: =J74*$C$79 -> 623 | K78: =K74*$C$79 -> 712 | L78: =L74*$C$79 -> 801 | M78: =M74*$C$79 -> 890 | N78: =N74*$C$79 -> 979 | O78: =O74*$C$79 -> 1068 | P78: =P74*$C$79 -> 1157 | Q78: =Q74*$C$79 -> 1246 | R78: =R74*$C$79 -> 1335 | S78: =S74*$C$79 -> 1424 | T78: =T74*$C$79 -> 1513 | U78: =U74*$C$79 -> 1602 | V78: =V74*$C$79 -> 1691 | W78: =W74*$C$79 -> 1780
B79: 566 | C79: 89 | D79: BMHeat500.90 | E79: боковое | F79: BMHeat500.90/X | G79: ='t AL I BM боковое'!G71*'График AL I BM боковое'!$B$4 -> 740 | H79: ='t AL I BM боковое'!H71*'График AL I BM боковое'!$B$4 -> 925 | I79: ='t AL I BM боковое'!I71*'График AL I BM боковое'!$B$4 -> 1110 | J79: ='t AL I BM боковое'!J71*'График AL I BM боковое'!$B$4 -> 1295 | K79: ='t AL I BM боковое'!K71*'График AL I BM боковое'!$B$4 -> 1480 | L79: ='t AL I BM боковое'!L71*'График AL I BM боковое'!$B$4 -> 1665 | M79: ='t AL I BM боковое'!M71*'График AL I BM боковое'!$B$4 -> 1850 | N79: ='t AL I BM боковое'!N71*'График AL I BM боковое'!$B$4 -> 2035 | O79: ='t AL I BM боковое'!O71*'График AL I BM боковое'!$B$4 -> 2220 | P79: ='t AL I BM боковое'!P71*'График AL I BM боковое'!$B$4 -> 2405 | Q79: ='t AL I BM боковое'!Q71*'График AL I BM боковое'!$B$4 -> 2590 | R79: ='t AL I BM боковое'!R71*'График AL I BM боковое'!$B$4 -> 2775 | S79: ='t AL I BM боковое'!S71*'График AL I BM боковое'!$B$4 -> 2960 | T79: ='t AL I BM боковое'!T71*'График AL I BM боковое'!$B$4 -> 3145 | U79: ='t AL I BM боковое'!U71*'График AL I BM боковое'!$B$4 -> 3330 | V79: ='t AL I BM боковое'!V71*'График AL I BM боковое'!$B$4 -> 3515 | W79: ='t AL I BM боковое'!W71*'График AL I BM боковое'!$B$4 -> 3700
B81: Длина, мм | G81: =G74*$C$82 -> 384 | H81: =H74*$C$82 -> 480 | I81: =I74*$C$82 -> 576 | J81: =J74*$C$82 -> 672 | K81: =K74*$C$82 -> 768 | L81: =L74*$C$82 -> 864 | M81: =M74*$C$82 -> 960 | N81: =N74*$C$82 -> 1056 | O81: =O74*$C$82 -> 1152 | P81: =P74*$C$82 -> 1248 | Q81: =Q74*$C$82 -> 1344 | R81: =R74*$C$82 -> 1440 | S81: =S74*$C$82 -> 1536 | T81: =T74*$C$82 -> 1632 | U81: =U74*$C$82 -> 1728 | V81: =V74*$C$82 -> 1824 | W81: =W74*$C$82 -> 1920
B82: 566 | C82: 96 | D82: BMHeat500.100 | E82: боковое | F82: BMHeat500.100/X | G82: ='t AL I BM боковое'!G73*'График AL I BM боковое'!$B$4 -> 812 | H82: ='t AL I BM боковое'!H73*'График AL I BM боковое'!$B$4 -> 1015 | I82: ='t AL I BM боковое'!I73*'График AL I BM боковое'!$B$4 -> 1218 | J82: ='t AL I BM боковое'!J73*'График AL I BM боковое'!$B$4 -> 1421 | K82: ='t AL I BM боковое'!K73*'График AL I BM боковое'!$B$4 -> 1624 | L82: ='t AL I BM боковое'!L73*'График AL I BM боковое'!$B$4 -> 1827 | M82: ='t AL I BM боковое'!M73*'График AL I BM боковое'!$B$4 -> 2030 | N82: ='t AL I BM боковое'!N73*'График AL I BM боковое'!$B$4 -> 2233 | O82: ='t AL I BM боковое'!O73*'График AL I BM боковое'!$B$4 -> 2436 | P82: ='t AL I BM боковое'!P73*'График AL I BM боковое'!$B$4 -> 2639 | Q82: ='t AL I BM боковое'!Q73*'График AL I BM боковое'!$B$4 -> 2842 | R82: ='t AL I BM боковое'!R73*'График AL I BM боковое'!$B$4 -> 3045 | S82: ='t AL I BM боковое'!S73*'График AL I BM боковое'!$B$4 -> 3248 | T82: ='t AL I BM боковое'!T73*'График AL I BM боковое'!$B$4 -> 3451 | U82: ='t AL I BM боковое'!U73*'График AL I BM боковое'!$B$4 -> 3654 | V82: ='t AL I BM боковое'!V73*'График AL I BM боковое'!$B$4 -> 3857 | W82: ='t AL I BM боковое'!W73*'График AL I BM боковое'!$B$4 -> 4060
A86: BMEco | B86: Высота (мм) | C86: Глубина секции | D86: Модель | E86: Подключение | F86: Артикул заказа | O86: Количество секций, шт
G87: 4 | H87: 5 | I87: 6 | J87: 7 | K87: 8 | L87: 9 | M87: 10 | N87: 11 | O87: 12 | P87: 13 | Q87: 14 | R87: 15 | S87: 16 | T87: 17 | U87: 18 | V87: 19 | W87: 20
G88: Длина, мм
G89: 80 | H89: =80*2 -> 160 | I89: =80*3 -> 240 | J89: =80*4 -> 320 | K89: =80*5 -> 400 | L89: =80*6 -> 480 | M89: =80*7 -> 560 | N89: =80*8 -> 640 | O89: =80*9 -> 720 | P89: =80*10 -> 800 | Q89: =80*11 -> 880 | R89: =80*12 -> 960 | S89: =80*13 -> 1040 | T89: =80*14 -> 1120 | U89: =80*15 -> 1200 | V89: =80*16 -> 1280 | W89: =80*17 -> 1360
G90: Количество секций, шт
G91: 1 | H91: 2 | I91: 3 | J91: 4 | K91: 5 | L91: 6 | M91: 7 | N91: 8 | O91: 9 | P91: 10 | Q91: 11 | R91: 12 | S91: 13 | T91: 14 | U91: 15 | V91: 16 | W91: 17
G92: Длина, мм
G93: 80 | H93: =80*2 -> 160 | I93: =80*3 -> 240 | J93: =80*4 -> 320 | K93: =80*5 -> 400 | L93: =80*6 -> 480 | M93: =80*7 -> 560 | N93: =80*8 -> 640 | O93: =80*9 -> 720 | P93: =80*10 -> 800 | Q93: =80*11 -> 880 | R93: =80*12 -> 960 | S93: =80*13 -> 1040 | T93: =80*14 -> 1120 | U93: =80*15 -> 1200 | V93: =80*16 -> 1280 | W93: =80*17 -> 1360
G94: Количество секций, шт
G95: 1 | H95: 2 | I95: 3 | J95: 4 | K95: 5 | L95: 6 | M95: 7 | N95: 8 | O95: 9 | P95: 10 | Q95: 11 | R95: 12 | S95: 13 | T95: 14 | U95: 15 | V95: 16 | W95: 17
B96: Длина, мм | G96: =G87*$C$97 -> 314 | H96: =H87*$C$97 -> 392.5 | I96: =I87*$C$97 -> 471 | J96: =J87*$C$97 -> 549.5 | K96: =K87*$C$97 -> 628 | L96: =L87*$C$97 -> 706.5 | M96: =M87*$C$97 -> 785 | N96: =N87*$C$97 -> 863.5 | O96: =O87*$C$97 -> 942 | P96: =P87*$C$97 -> 1020.5 | Q96: =Q87*$C$97 -> 1099 | R96: =R87*$C$97 -> 1177.5 | S96: =S87*$C$97 -> 1256 | T96: =T87*$C$97 -> 1334.5 | U96: =U87*$C$97 -> 1413 | V96: =V87*$C$97 -> 1491.5 | W96: =W87*$C$97 -> 1570
B97: 403 | C97: 78.5 | D97: BMEco350.80 | E97: боковое | F97: BMEco350.80/X | G97: ='t AL I BM боковое'!G79*'График AL I BM боковое'!$B$4 -> 420 | H97: ='t AL I BM боковое'!H79*'График AL I BM боковое'!$B$4 -> 525 | I97: ='t AL I BM боковое'!I79*'График AL I BM боковое'!$B$4 -> 630 | J97: ='t AL I BM боковое'!J79*'График AL I BM боковое'!$B$4 -> 735 | K97: ='t AL I BM боковое'!K79*'График AL I BM боковое'!$B$4 -> 840 | L97: ='t AL I BM боковое'!L79*'График AL I BM боковое'!$B$4 -> 945 | M97: ='t AL I BM боковое'!M79*'График AL I BM боковое'!$B$4 -> 1050 | N97: ='t AL I BM боковое'!N79*'График AL I BM боковое'!$B$4 -> 1155 | O97: ='t AL I BM боковое'!O79*'График AL I BM боковое'!$B$4 -> 1260 | P97: ='t AL I BM боковое'!P79*'График AL I BM боковое'!$B$4 -> 1365 | Q97: ='t AL I BM боковое'!Q79*'График AL I BM боковое'!$B$4 -> 1470 | R97: ='t AL I BM боковое'!R79*'График AL I BM боковое'!$B$4 -> 1575 | S97: ='t AL I BM боковое'!S79*'График AL I BM боковое'!$B$4 -> 1680 | T97: ='t AL I BM боковое'!T79*'График AL I BM боковое'!$B$4 -> 1785 | U97: ='t AL I BM боковое'!U79*'График AL I BM боковое'!$B$4 -> 1890 | V97: ='t AL I BM боковое'!V79*'График AL I BM боковое'!$B$4 -> 1995 | W97: ='t AL I BM боковое'!W79*'График AL I BM боковое'!$B$4 -> 2100
B99: Длина, мм | G99: =G87*$C$100 -> 320 | H99: =H87*$C$100 -> 400 | I99: =I87*$C$100 -> 480 | J99: =J87*$C$100 -> 560 | K99: =K87*$C$100 -> 640 | L99: =L87*$C$100 -> 720 | M99: =M87*$C$100 -> 800 | N99: =N87*$C$100 -> 880 | O99: =O87*$C$100 -> 960 | P99: =P87*$C$100 -> 1040 | Q99: =Q87*$C$100 -> 1120 | R99: =R87*$C$100 -> 1200 | S99: =S87*$C$100 -> 1280 | T99: =T87*$C$100 -> 1360 | U99: =U87*$C$100 -> 1440 | V99: =V87*$C$100 -> 1520 | W99: =W87*$C$100 -> 1600
B100: 562 | C100: 80 | D100: BMEco500.80 | E100: боковое | F100: BMEco500.80/X | G100: ='t AL I BM боковое'!G81*'График AL I BM боковое'!$B$4 -> 592 | H100: ='t AL I BM боковое'!H81*'График AL I BM боковое'!$B$4 -> 740 | I100: ='t AL I BM боковое'!I81*'График AL I BM боковое'!$B$4 -> 888 | J100: ='t AL I BM боковое'!J81*'График AL I BM боковое'!$B$4 -> 1036 | K100: ='t AL I BM боковое'!K81*'График AL I BM боковое'!$B$4 -> 1184 | L100: ='t AL I BM боковое'!L81*'График AL I BM боковое'!$B$4 -> 1332 | M100: ='t AL I BM боковое'!M81*'График AL I BM боковое'!$B$4 -> 1480 | N100: ='t AL I BM боковое'!N81*'График AL I BM боковое'!$B$4 -> 1628 | O100: ='t AL I BM боковое'!O81*'График AL I BM боковое'!$B$4 -> 1776 | P100: ='t AL I BM боковое'!P81*'График AL I BM боковое'!$B$4 -> 1924 | Q100: ='t AL I BM боковое'!Q81*'График AL I BM боковое'!$B$4 -> 2072 | R100: ='t AL I BM боковое'!R81*'График AL I BM боковое'!$B$4 -> 2220 | S100: ='t AL I BM боковое'!S81*'График AL I BM боковое'!$B$4 -> 2368 | T100: ='t AL I BM боковое'!T81*'График AL I BM боковое'!$B$4 -> 2516 | U100: ='t AL I BM боковое'!U81*'График AL I BM боковое'!$B$4 -> 2664 | V100: ='t AL I BM боковое'!V81*'График AL I BM боковое'!$B$4 -> 2812 | W100: ='t AL I BM боковое'!W81*'График AL I BM боковое'!$B$4 -> 2960
B102: Длина, мм | G102: =G87*$C$103 -> 400 | H102: =H87*$C$103 -> 500 | I102: =I87*$C$103 -> 600 | J102: =J87*$C$103 -> 700 | K102: =K87*$C$103 -> 800 | L102: =L87*$C$103 -> 900 | M102: =M87*$C$103 -> 1000 | N102: =N87*$C$103 -> 1100 | O102: =O87*$C$103 -> 1200 | P102: =P87*$C$103 -> 1300 | Q102: =Q87*$C$103 -> 1400 | R102: =R87*$C$103 -> 1500 | S102: =S87*$C$103 -> 1600 | T102: =T87*$C$103 -> 1700 | U102: =U87*$C$103 -> 1800 | V102: =V87*$C$103 -> 1900 | W102: =W87*$C$103 -> 2000
B103: 560 | C103: 100 | D103: BMEco500.100 | E103: боковое | F103: BMEco500.100/X | G103: ='t AL I BM боковое'!G83*'График AL I BM боковое'!$B$4 -> 636 | H103: ='t AL I BM боковое'!H83*'График AL I BM боковое'!$B$4 -> 795 | I103: ='t AL I BM боковое'!I83*'График AL I BM боковое'!$B$4 -> 954 | J103: ='t AL I BM боковое'!J83*'График AL I BM боковое'!$B$4 -> 1113 | K103: ='t AL I BM боковое'!K83*'График AL I BM боковое'!$B$4 -> 1272 | L103: ='t AL I BM боковое'!L83*'График AL I BM боковое'!$B$4 -> 1431 | M103: ='t AL I BM боковое'!M83*'График AL I BM боковое'!$B$4 -> 1590 | N103: ='t AL I BM боковое'!N83*'График AL I BM боковое'!$B$4 -> 1749 | O103: ='t AL I BM боковое'!O83*'График AL I BM боковое'!$B$4 -> 1908 | P103: ='t AL I BM боковое'!P83*'График AL I BM боковое'!$B$4 -> 2067 | Q103: ='t AL I BM боковое'!Q83*'График AL I BM боковое'!$B$4 -> 2226 | R103: ='t AL I BM боковое'!R83*'График AL I BM боковое'!$B$4 -> 2385 | S103: ='t AL I BM боковое'!S83*'График AL I BM боковое'!$B$4 -> 2544 | T103: ='t AL I BM боковое'!T83*'График AL I BM боковое'!$B$4 -> 2703 | U103: ='t AL I BM боковое'!U83*'График AL I BM боковое'!$B$4 -> 2862 | V103: ='t AL I BM боковое'!V83*'График AL I BM боковое'!$B$4 -> 3021 | W103: ='t AL I BM боковое'!W83*'График AL I BM боковое'!$B$4 -> 3180
A107: BMPro | B107: Высота (мм) | C107: Глубина секции | D107: Модель | E107: Подключение | F107: Артикул заказа | O107: Количество секций, шт
G108: 4 | H108: 5 | I108: 6 | J108: 7 | K108: 8 | L108: 9 | M108: 10 | N108: 11 | O108: 12 | P108: 13 | Q108: 14 | R108: 15 | S108: 16 | T108: 17 | U108: 18 | V108: 19 | W108: 20
B109: Длина, мм | G109: =G108*$C$110 -> 386 | H109: =H108*$C$110 -> 482.5 | I109: =I108*$C$110 -> 579 | J109: =J108*$C$110 -> 675.5 | K109: =K108*$C$110 -> 772 | L109: =L108*$C$110 -> 868.5 | M109: =M108*$C$110 -> 965 | N109: =N108*$C$110 -> 1061.5 | O109: =O108*$C$110 -> 1158 | P109: =P108*$C$110 -> 1254.5 | Q109: =Q108*$C$110 -> 1351 | R109: =R108*$C$110 -> 1447.5 | S109: =S108*$C$110 -> 1544 | T109: =T108*$C$110 -> 1640.5 | U109: =U108*$C$110 -> 1737 | V109: =V108*$C$110 -> 1833.5 | W109: =W108*$C$110 -> 1930
B110: 275 | C110: 96.5 | D110: BMPro200.100 | E110: боковое | F110: BMPro200.100/X | G110: ='t AL I BM боковое'!G89*'График AL I BM боковое'!$B$4 -> 356 | H110: ='t AL I BM боковое'!H89*'График AL I BM боковое'!$B$4 -> 445 | I110: ='t AL I BM боковое'!I89*'График AL I BM боковое'!$B$4 -> 534 | J110: ='t AL I BM боковое'!J89*'График AL I BM боковое'!$B$4 -> 623 | K110: ='t AL I BM боковое'!K89*'График AL I BM боковое'!$B$4 -> 712 | L110: ='t AL I BM боковое'!L89*'График AL I BM боковое'!$B$4 -> 801 | M110: ='t AL I BM боковое'!M89*'График AL I BM боковое'!$B$4 -> 890 | N110: ='t AL I BM боковое'!N89*'График AL I BM боковое'!$B$4 -> 979 | O110: ='t AL I BM боковое'!O89*'График AL I BM боковое'!$B$4 -> 1068 | P110: ='t AL I BM боковое'!P89*'График AL I BM боковое'!$B$4 -> 1157 | Q110: ='t AL I BM боковое'!Q89*'График AL I BM боковое'!$B$4 -> 1246 | R110: ='t AL I BM боковое'!R89*'График AL I BM боковое'!$B$4 -> 1335 | S110: ='t AL I BM боковое'!S89*'График AL I BM боковое'!$B$4 -> 1424 | T110: ='t AL I BM боковое'!T89*'График AL I BM боковое'!$B$4 -> 1513 | U110: ='t AL I BM боковое'!U89*'График AL I BM боковое'!$B$4 -> 1602 | V110: ='t AL I BM боковое'!V89*'График AL I BM боковое'!$B$4 -> 1691 | W110: ='t AL I BM боковое'!W89*'График AL I BM боковое'!$B$4 -> 1780
B112: Длина, мм | G112: =G108*$C$113 -> 320 | H112: =H108*$C$113 -> 400 | I112: =I108*$C$113 -> 480 | J112: =J108*$C$113 -> 560 | K112: =K108*$C$113 -> 640 | L112: =L108*$C$113 -> 720 | M112: =M108*$C$113 -> 800 | N112: =N108*$C$113 -> 880 | O112: =O108*$C$113 -> 960 | P112: =P108*$C$113 -> 1040 | Q112: =Q108*$C$113 -> 1120 | R112: =R108*$C$113 -> 1200 | S112: =S108*$C$113 -> 1280 | T112: =T108*$C$113 -> 1360 | U112: =U108*$C$113 -> 1440 | V112: =V108*$C$113 -> 1520 | W112: =W108*$C$113 -> 1600
B113: 415 | C113: 80 | D113: BMPro350.80 | E113: боковое | F113: BMPro350.80/X | G113: ='t AL I BM боковое'!G91*'График AL I BM боковое'!$B$4 -> 492 | H113: ='t AL I BM боковое'!H91*'График AL I BM боковое'!$B$4 -> 615 | I113: ='t AL I BM боковое'!I91*'График AL I BM боковое'!$B$4 -> 738 | J113: ='t AL I BM боковое'!J91*'График AL I BM боковое'!$B$4 -> 861 | K113: ='t AL I BM боковое'!K91*'График AL I BM боковое'!$B$4 -> 984 | L113: ='t AL I BM боковое'!L91*'График AL I BM боковое'!$B$4 -> 1107 | M113: ='t AL I BM боковое'!M91*'График AL I BM боковое'!$B$4 -> 1230 | N113: ='t AL I BM боковое'!N91*'График AL I BM боковое'!$B$4 -> 1353 | O113: ='t AL I BM боковое'!O91*'График AL I BM боковое'!$B$4 -> 1476 | P113: ='t AL I BM боковое'!P91*'График AL I BM боковое'!$B$4 -> 1599 | Q113: ='t AL I BM боковое'!Q91*'График AL I BM боковое'!$B$4 -> 1722 | R113: ='t AL I BM боковое'!R91*'График AL I BM боковое'!$B$4 -> 1845 | S113: ='t AL I BM боковое'!S91*'График AL I BM боковое'!$B$4 -> 1968 | T113: ='t AL I BM боковое'!T91*'График AL I BM боковое'!$B$4 -> 2091 | U113: ='t AL I BM боковое'!U91*'График AL I BM боковое'!$B$4 -> 2214 | V113: ='t AL I BM боковое'!V91*'График AL I BM боковое'!$B$4 -> 2337 | W113: ='t AL I BM боковое'!W91*'График AL I BM боковое'!$B$4 -> 2460
B115: Длина, мм | G115: =G108*$C$116 -> 320 | H115: =H108*$C$116 -> 400 | I115: =I108*$C$116 -> 480 | J115: =J108*$C$116 -> 560 | K115: =K108*$C$116 -> 640 | L115: =L108*$C$116 -> 720 | M115: =M108*$C$116 -> 800 | N115: =N108*$C$116 -> 880 | O115: =O108*$C$116 -> 960 | P115: =P108*$C$116 -> 1040 | Q115: =Q108*$C$116 -> 1120 | R115: =R108*$C$116 -> 1200 | S115: =S108*$C$116 -> 1280 | T115: =T108*$C$116 -> 1360 | U115: =U108*$C$116 -> 1440 | V115: =V108*$C$116 -> 1520 | W115: =W108*$C$116 -> 1600
B116: 568 | C116: 80 | D116: BMPro500.80 | E116: боковое | F116: BMPro500.80/X | G116: ='t AL I BM боковое'!G93*'График AL I BM боковое'!$B$4 -> 636 | H116: ='t AL I BM боковое'!H93*'График AL I BM боковое'!$B$4 -> 795 | I116: ='t AL I BM боковое'!I93*'График AL I BM боковое'!$B$4 -> 954 | J116: ='t AL I BM боковое'!J93*'График AL I BM боковое'!$B$4 -> 1113 | K116: ='t AL I BM боковое'!K93*'График AL I BM боковое'!$B$4 -> 1272 | L116: ='t AL I BM боковое'!L93*'График AL I BM боковое'!$B$4 -> 1431 | M116: ='t AL I BM боковое'!M93*'График AL I BM боковое'!$B$4 -> 1590 | N116: ='t AL I BM боковое'!N93*'График AL I BM боковое'!$B$4 -> 1749 | O116: ='t AL I BM боковое'!O93*'График AL I BM боковое'!$B$4 -> 1908 | P116: ='t AL I BM боковое'!P93*'График AL I BM боковое'!$B$4 -> 2067 | Q116: ='t AL I BM боковое'!Q93*'График AL I BM боковое'!$B$4 -> 2226 | R116: ='t AL I BM боковое'!R93*'График AL I BM боковое'!$B$4 -> 2385 | S116: ='t AL I BM боковое'!S93*'График AL I BM боковое'!$B$4 -> 2544 | T116: ='t AL I BM боковое'!T93*'График AL I BM боковое'!$B$4 -> 2703 | U116: ='t AL I BM боковое'!U93*'График AL I BM боковое'!$B$4 -> 2862 | V116: ='t AL I BM боковое'!V93*'График AL I BM боковое'!$B$4 -> 3021 | W116: ='t AL I BM боковое'!W93*'График AL I BM боковое'!$B$4 -> 3180
B118: Длина, мм | G118: =G108*$C$119 -> 384 | H118: =H108*$C$119 -> 480 | I118: =I108*$C$119 -> 576 | J118: =J108*$C$119 -> 672 | K118: =K108*$C$119 -> 768 | L118: =L108*$C$119 -> 864 | M118: =M108*$C$119 -> 960 | N118: =N108*$C$119 -> 1056 | O118: =O108*$C$119 -> 1152 | P118: =P108*$C$119 -> 1248 | Q118: =Q108*$C$119 -> 1344 | R118: =R108*$C$119 -> 1440 | S118: =S108*$C$119 -> 1536 | T118: =T108*$C$119 -> 1632 | U118: =U108*$C$119 -> 1728 | V118: =V108*$C$119 -> 1824 | W118: =W108*$C$119 -> 1920
B119: 568 | C119: 96 | D119: BMPro500.100 | E119: боковое | F119: BMPro500.100/X | G119: ='t AL I BM боковое'!G95*'График AL I BM боковое'!$B$4 -> 676 | H119: ='t AL I BM боковое'!H95*'График AL I BM боковое'!$B$4 -> 845 | I119: ='t AL I BM боковое'!I95*'График AL I BM боковое'!$B$4 -> 1014 | J119: ='t AL I BM боковое'!J95*'График AL I BM боковое'!$B$4 -> 1183 | K119: ='t AL I BM боковое'!K95*'График AL I BM боковое'!$B$4 -> 1352 | L119: ='t AL I BM боковое'!L95*'График AL I BM боковое'!$B$4 -> 1521 | M119: ='t AL I BM боковое'!M95*'График AL I BM боковое'!$B$4 -> 1690 | N119: ='t AL I BM боковое'!N95*'График AL I BM боковое'!$B$4 -> 1859 | O119: ='t AL I BM боковое'!O95*'График AL I BM боковое'!$B$4 -> 2028 | P119: ='t AL I BM боковое'!P95*'График AL I BM боковое'!$B$4 -> 2197 | Q119: ='t AL I BM боковое'!Q95*'График AL I BM боковое'!$B$4 -> 2366 | R119: ='t AL I BM боковое'!R95*'График AL I BM боковое'!$B$4 -> 2535 | S119: ='t AL I BM боковое'!S95*'График AL I BM боковое'!$B$4 -> 2704 | T119: ='t AL I BM боковое'!T95*'График AL I BM боковое'!$B$4 -> 2873 | U119: ='t AL I BM боковое'!U95*'График AL I BM боковое'!$B$4 -> 3042 | V119: ='t AL I BM боковое'!V95*'График AL I BM боковое'!$B$4 -> 3211 | W119: ='t AL I BM боковое'!W95*'График AL I BM боковое'!$B$4 -> 3380

Sheet BM нижнее
A2: Биметаллические секционные радиаторы SPL BMVR / BMVL с нижним подключением
A29: SPL BMV | D29: Длина, мм | E29: Высота, мм | F29: Глубина секции, мм | G29: ПРИМЕЧАНИЕ
D30: 1500 | E30: 275 | F30: 89
D31: Необходимая мощность, Вт | E31: ∆t | F31: LMTD
D32: 3500 | E32: =(D34+E34)/2-F34 -> 70 | F32: =(D34-E34)/LN((D34-F34)/(E34-F34)) -> 68.91512662
D33: tвх | E33: tвых | F33: tвн
D34: 105 | E34: 75 | F34: 20
A37: BMV | B37: Высота (мм) | C37: Глубина секции | D37: Модель | E37: Подключение | F37: Артикул заказа | O37: Количество секций, шт
G38: 4 | H38: 5 | I38: 6 | J38: 7 | K38: 8 | L38: 9 | M38: 10 | N38: 11 | O38: 12 | P38: 13 | Q38: 14 | R38: 15 | S38: 16 | T38: 17 | U38: 18 | V38: 19 | W38: 20
B39: Длина, мм | G39: =G38*$C$40 -> 386 | H39: =H38*$C$40 -> 482.5 | I39: =I38*$C$40 -> 579 | J39: =J38*$C$40 -> 675.5 | K39: =K38*$C$40 -> 772 | L39: =L38*$C$40 -> 868.5 | M39: =M38*$C$40 -> 965 | N39: =N38*$C$40 -> 1061.5 | O39: =O38*$C$40 -> 1158 | P39: =P38*$C$40 -> 1254.5 | Q39: =Q38*$C$40 -> 1351 | R39: =R38*$C$40 -> 1447.5 | S39: =S38*$C$40 -> 1544 | T39: =T38*$C$40 -> 1640.5 | U39: =U38*$C$40 -> 1737 | V39: =V38*$C$40 -> 1833.5 | W39: =W38*$C$40 -> 1930
B40: 275 | C40: 96.5 | D40: BMVR200.100 / BMVL200.100 | E40: нижнее правое / нижнее левое | F40: BMVR200.100/X / BMVL200.100/X | G40: ='t BM нижнее'!G23*'График BM нижнее'!$B$4 -> 356 | H40: ='t BM нижнее'!H23*'График BM нижнее'!$B$4 -> 445 | I40: ='t BM нижнее'!I23*'График BM нижнее'!$B$4 -> 534 | J40: ='t BM нижнее'!J23*'График BM нижнее'!$B$4 -> 623 | K40: ='t BM нижнее'!K23*'График BM нижнее'!$B$4 -> 712 | L40: ='t BM нижнее'!L23*'График BM нижнее'!$B$4 -> 801 | M40: ='t BM нижнее'!M23*'График BM нижнее'!$B$4 -> 890 | N40: ='t BM нижнее'!N23*'График BM нижнее'!$B$4 -> 979 | O40: ='t BM нижнее'!O23*'График BM нижнее'!$B$4 -> 1068 | P40: ='t BM нижнее'!P23*'График BM нижнее'!$B$4 -> 1157 | Q40: ='t BM нижнее'!Q23*'График BM нижнее'!$B$4 -> 1246 | R40: ='t BM нижнее'!R23*'График BM нижнее'!$B$4 -> 1335 | S40: ='t BM нижнее'!S23*'График BM нижнее'!$B$4 -> 1424 | T40: ='t BM нижнее'!T23*'График BM нижнее'!$B$4 -> 1513 | U40: ='t BM нижнее'!U23*'График BM нижнее'!$B$4 -> 1602 | V40: ='t BM нижнее'!V23*'График BM нижнее'!$B$4 -> 1691 | W40: ='t BM нижнее'!W23*'График BM нижнее'!$B$4 -> 1780
B42: Длина, мм | G42: =G38*$C$43 -> 356 | H42: =H38*$C$43 -> 445 | I42: =I38*$C$43 -> 534 | J42: =J38*$C$43 -> 623 | K42: =K38*$C$43 -> 712 | L42: =L38*$C$43 -> 801 | M42: =M38*$C$43 -> 890 | N42: =N38*$C$43 -> 979 | O42: =O38*$C$43 -> 1068 | P42: =P38*$C$43 -> 1157 | Q42: =Q38*$C$43 -> 1246 | R42: =R38*$C$43 -> 1335 | S42: =S38*$C$43 -> 1424 | T42: =T38*$C$43 -> 1513 | U42: =U38*$C$43 -> 1602 | V42: =V38*$C$43 -> 1691 | W42: =W38*$C$43 -> 1780
B43: 415 | C43: 89 | D43: BMVR350.90 / BMVL350.90 | E43: нижнее правое / нижнее левое | F43: BMVR350.90/X / BMVL350.90/X | G43: ='t BM нижнее'!G17*'График BM нижнее'!$B$4 -> 532 | H43: ='t BM нижнее'!H17*'График BM нижнее'!$B$4 -> 665 | I43: ='t BM нижнее'!I17*'График BM нижнее'!$B$4 -> 798 | J43: ='t BM нижнее'!J17*'График BM нижнее'!$B$4 -> 931 | K43: ='t BM нижнее'!K17*'График BM нижнее'!$B$4 -> 1064 | L43: ='t BM нижнее'!L17*'График BM нижнее'!$B$4 -> 1197 | M43: ='t BM нижнее'!M17*'График BM нижнее'!$B$4 -> 1330 | N43: ='t BM нижнее'!N17*'График BM нижнее'!$B$4 -> 1463 | O43: ='t BM нижнее'!O17*'График BM нижнее'!$B$4 -> 1596 | P43: ='t BM нижнее'!P17*'График BM нижнее'!$B$4 -> 1729 | Q43: ='t BM нижнее'!Q17*'График BM нижнее'!$B$4 -> 1862 | R43: ='t BM нижнее'!R17*'График BM нижнее'!$B$4 -> 1995 | S43: ='t BM нижнее'!S17*'График BM нижнее'!$B$4 -> 2128 | T43: ='t BM нижнее'!T17*'График BM нижнее'!$B$4 -> 2261 | U43: ='t BM нижнее'!U17*'График BM нижнее'!$B$4 -> 2394 | V43: ='t BM нижнее'!V17*'График BM нижнее'!$B$4 -> 2527 | W43: ='t BM нижнее'!W17*'График BM нижнее'!$B$4 -> 2660
B45: Длина, мм | G45: =G38*$C$46 -> 384 | H45: =H38*$C$46 -> 480 | I45: =I38*$C$46 -> 576 | J45: =J38*$C$46 -> 672 | K45: =K38*$C$46 -> 768 | L45: =L38*$C$46 -> 864 | M45: =M38*$C$46 -> 960 | N45: =N38*$C$46 -> 1056 | O45: =O38*$C$46 -> 1152 | P45: =P38*$C$46 -> 1248 | Q45: =Q38*$C$46 -> 1344 | R45: =R38*$C$46 -> 1440 | S45: =S38*$C$46 -> 1536 | T45: =T38*$C$46 -> 1632 | U45: =U38*$C$46 -> 1728 | V45: =V38*$C$46 -> 1824 | W45: =W38*$C$46 -> 1920
B46: 568 | C46: 96 | D46: BMVR500.100 / BMVL500.100 | E46: нижнее правое / нижнее левое | F46: BMVR500.100/X / BMVL500.100/X | G46: ='t BM нижнее'!G25*'График BM нижнее'!$B$4 -> 676 | H46: ='t BM нижнее'!H25*'График BM нижнее'!$B$4 -> 845 | I46: ='t BM нижнее'!I25*'График BM нижнее'!$B$4 -> 1014 | J46: ='t BM нижнее'!J25*'График BM нижнее'!$B$4 -> 1183 | K46: ='t BM нижнее'!K25*'График BM нижнее'!$B$4 -> 1352 | L46: ='t BM нижнее'!L25*'График BM нижнее'!$B$4 -> 1521 | M46: ='t BM нижнее'!M25*'График BM нижнее'!$B$4 -> 1690 | N46: ='t BM нижнее'!N25*'График BM нижнее'!$B$4 -> 1859 | O46: ='t BM нижнее'!O25*'График BM нижнее'!$B$4 -> 2028 | P46: ='t BM нижнее'!P25*'График BM нижнее'!$B$4 -> 2197 | Q46: ='t BM нижнее'!Q25*'График BM нижнее'!$B$4 -> 2366 | R46: ='t BM нижнее'!R25*'График BM нижнее'!$B$4 -> 2535 | S46: ='t BM нижнее'!S25*'График BM нижнее'!$B$4 -> 2704 | T46: ='t BM нижнее'!T25*'График BM нижнее'!$B$4 -> 2873 | U46: ='t BM нижнее'!U25*'График BM нижнее'!$B$4 -> 3042 | V46: ='t BM нижнее'!V25*'График BM нижнее'!$B$4 -> 3211 | W46: ='t BM нижнее'!W25*'График BM нижнее'!$B$4 -> 3380

Sheet График AL I BM боковое (hidden)
B3: kt | D3: n
B4: =('AL I BM боковое'!E32/70)^1.3 -> 1 | D4: 1.3

Sheet График BM нижнее (hidden)
B3: kt | D3: n
B4: =('BM нижнее'!E32/70)^1.3 -> 1 | D4: 1.3

Sheet t AL I BM боковое (hidden)
A2: Секционные радиаторы SPL ALHeat / ALEco / ALPro / BMHeat / BMEco / BMPro с боковым подключением
A29: SPL AL / BM | D29: Длина, см | E29: Высота, см | F29: Тип | G29: ПРИМЕЧАНИЕ
D30: 150 | E30: 30 | F30: 22
D31: Необходимая мощность, Вт | E31: ∆t | F31: LMTD
D32: 3500 | E32: =(CEILING((D34+E34)/2-F34,1)) -> 70 | F32: =(D34-E34)/LN((D34-F34)/(E34-F34)) -> 68.91512662
D33: tвх | E33: tвых | F33: tвн
D34: 105 | E34: 75 | F34: 20
A37: ALHeat | B37: Высота (мм) | C37: Глубина секции | D37: Модель | E37: Подключение | F37: Артикул заказа | G37: Количество секций, шт
G38: 4 | H38: 5 | I38: 6 | J38: 7 | K38: 8 | L38: 9 | M38: 10 | N38: 11 | O38: 12 | P38: 13 | Q38: 14 | R38: 15 | S38: 16 | T38: 17 | U38: 18 | V38: 19 | W38: 20
D39: ALHeat500.90 | E39: боковое | F39: ALHeat500.90/X | G39: =G38*$X$39 -> 724 | H39: =H38*$X$39 -> 905 | I39: =I38*$X$39 -> 1086 | J39: =J38*$X$39 -> 1267 | K39: =K38*$X$39 -> 1448 | L39: =L38*$X$39 -> 1629 | M39: =M38*$X$39 -> 1810 | N39: =N38*$X$39 -> 1991 | O39: =O38*$X$39 -> 2172 | P39: =P38*$X$39 -> 2353 | Q39: =Q38*$X$39 -> 2534 | R39: =R38*$X$39 -> 2715 | S39: =S38*$X$39 -> 2896 | T39: =T38*$X$39 -> 3077 | U39: =U38*$X$39 -> 3258 | V39: =V38*$X$39 -> 3439 | W39: =W38*$X$39 -> 3620 | X39: 181
A43: ALEco | B43: Высота (мм) | C43: Глубина секции | D43: Модель | E43: Подключение | F43: Артикул заказа | G43: Количество секций, шт
G44: 4 | H44: 5 | I44: 6 | J44: 7 | K44: 8 | L44: 9 | M44: 10 | N44: 11 | O44: 12 | P44: 13 | Q44: 14 | R44: 15 | S44: 16 | T44: 17 | U44: 18 | V44: 19 | W44: 20
D45: ALEco350.80 | E45: боковое | F45: ALEco350.80/X | G45: =G44*$X$45 -> 440 | H45: =H44*$X$45 -> 550 | I45: =I44*$X$45 -> 660 | J45: =J44*$X$45 -> 770 | K45: =K44*$X$45 -> 880 | L45: =L44*$X$45 -> 990 | M45: =M44*$X$45 -> 1100 | N45: =N44*$X$45 -> 1210 | O45: =O44*$X$45 -> 1320 | P45: =P44*$X$45 -> 1430 | Q45: =Q44*$X$45 -> 1540 | R45: =R44*$X$45 -> 1650 | S45: =S44*$X$45 -> 1760 | T45: =T44*$X$45 -> 1870 | U45: =U44*$X$45 -> 1980 | V45: =V44*$X$45 -> 2090 | W45: =W44*$X$45 -> 2200 | X45: 110
B47: 576 | C47: 80 | D47: ALEco500.80 | E47: боковое | F47: ALEco500.80/X | G47: =G44*$X$47 -> 604 | H47: =H44*$X$47 -> 755 | I47: =I44*$X$47 -> 906 | J47: =J44*$X$47 -> 1057 | K47: =K44*$X$47 -> 1208 | L47: =L44*$X$47 -> 1359 | M47: =M44*$X$47 -> 1510 | N47: =N44*$X$47 -> 1661 | O47: =O44*$X$47 -> 1812 | P47: =P44*$X$47 -> 1963 | Q47: =Q44*$X$47 -> 2114 | R47: =R44*$X$47 -> 2265 | S47: =S44*$X$47 -> 2416 | T47: =T44*$X$47 -> 2567 | U47: =U44*$X$47 -> 2718 | V47: =V44*$X$47 -> 2869 | W47: =W44*$X$47 -> 3020 | X47: 151
B49: 567 | C49: 97 | D49: ALEco500.96 | E49: боковое | F49: ALEco500.96/X | G49: =G44*$X$49 -> 628 | H49: =H44*$X$49 -> 785 | I49: =I44*$X$49 -> 942 | J49: =J44*$X$49 -> 1099 | K49: =K44*$X$49 -> 1256 | L49: =L44*$X$49 -> 1413 | M49: =M44*$X$49 -> 1570 | N49: =N44*$X$49 -> 1727 | O49: =O44*$X$49 -> 1884 | P49: =P44*$X$49 -> 2041 | Q49: =Q44*$X$49 -> 2198 | R49: =R44*$X$49 -> 2355 | S49: =S44*$X$49 -> 2512 | T49: =T44*$X$49 -> 2669 | U49: =U44*$X$49 -> 2826 | V49: =V44*$X$49 -> 2983 | W49: =W44*$X$49 -> 3140 | X49: 157
A53: ALPro | B53: Высота (мм) | C53: Глубина секции | D53: Модель | E53: Подключение | F53: Артикул заказа | G53: Количество секций, шт
G54: 4 | H54: 5 | I54: 6 | J54: 7 | K54: 8 | L54: 9 | M54: 10 | N54: 11 | O54: 12 | P54: 13 | Q54: 14 | R54: 15 | S54: 16 | T54: 17 | U54: 18 | V54: 19 | W54: 20
D55: ALPro200.96 | E55: боковое | F55: ALPro200.96/X | G55: =G54*$X$55 -> 360 | H55: =H54*$X$55 -> 450 | I55: =I54*$X$55 -> 540 | J55: =J54*$X$55 -> 630 | K55: =K54*$X$55 -> 720 | L55: =L54*$X$55 -> 810 | M55: =M54*$X$55 -> 900 | N55: =N54*$X$55 -> 990 | O55: =O54*$X$55 -> 1080 | P55: =P54*$X$55 -> 1170 | Q55: =Q54*$X$55 -> 1260 | R55: =R54*$X$55 -> 1350 | S55: =S54*$X$55 -> 1440 | T55: =T54*$X$55 -> 1530 | U55: =U54*$X$55 -> 1620 | V55: =V54*$X$55 -> 1710 | W55: =W54*$X$55 -> 1800 | X55: 90
B57: 420 | C57: 80 | D57: ALPro350.80 | E57: боковое | F57: ALPro350.80/X | G57: =G54*$X$57 -> 476 | H57: =H54*$X$57 -> 595 | I57: =I54*$X$57 -> 714 | J57: =J54*$X$57 -> 833 | K57: =K54*$X$57 -> 952 | L57: =L54*$X$57 -> 1071 | M57: =M54*$X$57 -> 1190 | N57: =N54*$X$57 -> 1309 | O57: =O54*$X$57 -> 1428 | P57: =P54*$X$57 -> 1547 | Q57: =Q54*$X$57 -> 1666 | R57: =R54*$X$57 -> 1785 | S57: =S54*$X$57 -> 1904 | T57: =T54*$X$57 -> 2023 | U57: =U54*$X$57 -> 2142 | V57: =V54*$X$57 -> 2261 | W57: =W54*$X$57 -> 2380 | X57: 119
B59: 568 | C59: 80 | D59: ALPro500.80 | E59: боковое | F59: ALPro500.80/X | G59: =G54*$X$59 -> 672 | H59: =H54*$X$59 -> 840 | I59: =I54*$X$59 -> 1008 | J59: =J54*$X$59 -> 1176 | K59: =K54*$X$59 -> 1344 | L59: =L54*$X$59 -> 1512 | M59: =M54*$X$59 -> 1680 | N59: =N54*$X$59 -> 1848 | O59: =O54*$X$59 -> 2016 | P59: =P54*$X$59 -> 2184 | Q59: =Q54*$X$59 -> 2352 | R59: =R54*$X$59 -> 2520 | S59: =S54*$X$59 -> 2688 | T59: =T54*$X$59 -> 2856 | U59: =U54*$X$59 -> 3024 | V59: =V54*$X$59 -> 3192 | W59: =W54*$X$59 -> 3360 | X59: 168
B61: 580 | C61: 96 | D61: ALPro500.96 | E61: боковое | F61: ALPro500.96/X | G61: =G54*$X$61 -> 692 | H61: =H54*$X$61 -> 865 | I61: =I54*$X$61 -> 1038 | J61: =J54*$X$61 -> 1211 | K61: =K54*$X$61 -> 1384 | L61: =L54*$X$61 -> 1557 | M61: =M54*$X$61 -> 1730 | N61: =N54*$X$61 -> 1903 | O61: =O54*$X$61 -> 2076 | P61: =P54*$X$61 -> 2249 | Q61: =Q54*$X$61 -> 2422 | R61: =R54*$X$61 -> 2595 | S61: =S54*$X$61 -> 2768 | T61: =T54*$X$61 -> 2941 | U61: =U54*$X$61 -> 3114 | V61: =V54*$X$61 -> 3287 | W61: =W54*$X$61 -> 3460 | X61: 173
A65: BMHeat | B65: Высота (мм) | C65: Глубина секции | D65: Модель | E65: Подключение | F65: Артикул заказа | G65: Количество секций, шт
G66: 4 | H66: 5 | I66: 6 | J66: 7 | K66: 8 | L66: 9 | M66: 10 | N66: 11 | O66: 12 | P66: 13 | Q66: 14 | R66: 15 | S66: 16 | T66: 17 | U66: 18 | V66: 19 | W66: 20
P67: Длина, мм
G68: =80*4 -> 320 | H68: =80*5 -> 400 | I68: =80*6 -> 480 | J68: =80*7 -> 560 | K68: =80*8 -> 640 | L68: =80*9 -> 720 | M68: =80*10 -> 800 | N68: =80*11 -> 880 | O68: =80*12 -> 960 | P68: =80*13 -> 1040 | Q68: =80*14 -> 1120 | R68: =80*15 -> 1200 | S68: =80*16 -> 1280 | T68: =80*17 -> 1360 | U68: =80*18 -> 1440 | V68: =80*19 -> 1520 | W68: =80*20 -> 1600
D69: BMHeat350.90 | E69: боковое | F69: BMHeat350.90/X | G69: =G66*$X$69 -> 532 | H69: =H66*$X$69 -> 665 | I69: =I66*$X$69 -> 798 | J69: =J66*$X$69 -> 931 | K69: =K66*$X$69 -> 1064 | L69: =L66*$X$69 -> 1197 | M69: =M66*$X$69 -> 1330 | N69: =N66*$X$69 -> 1463 | O69: =O66*$X$69 -> 1596 | P69: =P66*$X$69 -> 1729 | Q69: =Q66*$X$69 -> 1862 | R69: =R66*$X$69 -> 1995 | S69: =S66*$X$69 -> 2128 | T69: =T66*$X$69 -> 2261 | U69: =U66*$X$69 -> 2394 | V69: =V66*$X$69 -> 2527 | W69: =W66*$X$69 -> 2660 | X69: 133
D71: BMHeat500.90 | E71: боковое | F71: BMHeat500.90/X | G71: =G66*$X$71 -> 740 | H71: =H66*$X$71 -> 925 | I71: =I66*$X$71 -> 1110 | J71: =J66*$X$71 -> 1295 | K71: =K66*$X$71 -> 1480 | L71: =L66*$X$71 -> 1665 | M71: =M66*$X$71 -> 1850 | N71: =N66*$X$71 -> 2035 | O71: =O66*$X$71 -> 2220 | P71: =P66*$X$71 -> 2405 | Q71: =Q66*$X$71 -> 2590 | R71: =R66*$X$71 -> 2775 | S71: =S66*$X$71 -> 2960 | T71: =T66*$X$71 -> 3145 | U71: =U66*$X$71 -> 3330 | V71: =V66*$X$71 -> 3515 | W71: =W66*$X$71 -> 3700 | X71: 185
D73: BMHeat500.100 | E73: боковое | F73: BMHeat500.100/X | G73: =G66*$X$73 -> 812 | H73: =H66*$X$73 -> 1015 | I73: =I66*$X$73 -> 1218 | J73: =J66*$X$73 -> 1421 | K73: =K66*$X$73 -> 1624 | L73: =L66*$X$73 -> 1827 | M73: =M66*$X$73 -> 2030 | N73: =N66*$X$73 -> 2233 | O73: =O66*$X$73 -> 2436 | P73: =P66*$X$73 -> 2639 | Q73: =Q66*$X$73 -> 2842 | R73: =R66*$X$73 -> 3045 | S73: =S66*$X$73 -> 3248 | T73: =T66*$X$73 -> 3451 | U73: =U66*$X$73 -> 3654 | V73: =V66*$X$73 -> 3857 | W73: =W66*$X$73 -> 4060 | X73: 203
A77: BMEco | B77: Высота (мм) | C77: Глубина секции | D77: Модель | E77: Подключение | F77: Артикул заказа | G77: Количество секций, шт
G78: 4 | H78: 5 | I78: 6 | J78: 7 | K78: 8 | L78: 9 | M78: 10 | N78: 11 | O78: 12 | P78: 13 | Q78: 14 | R78: 15 | S78: 16 | T78: 17 | U78: 18 | V78: 19 | W78: 20
D79: BMEco350.80 | E79: боковое | F79: BMEco350.80/X | G79: =G78*$X$79 -> 420 | H79: =H78*$X$79 -> 525 | I79: =I78*$X$79 -> 630 | J79: =J78*$X$79 -> 735 | K79: =K78*$X$79 -> 840 | L79: =L78*$X$79 -> 945 | M79: =M78*$X$79 -> 1050 | N79: =N78*$X$79 -> 1155 | O79: =O78*$X$79 -> 1260 | P79: =P78*$X$79 -> 1365 | Q79: =Q78*$X$79 -> 1470 | R79: =R78*$X$79 -> 1575 | S79: =S78*$X$79 -> 1680 | T79: =T78*$X$79 -> 1785 | U79: =U78*$X$79 -> 1890 | V79: =V78*$X$79 -> 1995 | W79: =W78*$X$79 -> 2100 | X79: 105
B81: 562 | C81: 80 | D81: BMEco500.80 | E81: боковое | F81: BMEco500.80/X | G81: =G78*$X$81 -> 592 | H81: =H78*$X$81 -> 740 | I81: =I78*$X$81 -> 888 | J81: =J78*$X$81 -> 1036 | K81: =K78*$X$81 -> 1184 | L81: =L78*$X$81 -> 1332 | M81: =M78*$X$81 -> 1480 | N81: =N78*$X$81 -> 1628 | O81: =O78*$X$81 -> 1776 | P81: =P78*$X$81 -> 1924 | Q81: =Q78*$X$81 -> 2072 | R81: =R78*$X$81 -> 2220 | S81: =S78*$X$81 -> 2368 | T81: =T78*$X$81 -> 2516 | U81: =U78*$X$81 -> 2664 | V81: =V78*$X$81 -> 2812 | W81: =W78*$X$81 -> 2960 | X81: 148
B83: 560 | C83: 100 | D83: BMEco500.100 | E83: боковое | F83: BMEco500.100/X | G83: =G78*$X$83 -> 636 | H83: =H78*$X$83 -> 795 | I83: =I78*$X$83 -> 954 | J83: =J78*$X$83 -> 1113 | K83: =K78*$X$83 -> 1272 | L83: =L78*$X$83 -> 1431 | M83: =M78*$X$83 -> 1590 | N83: =N78*$X$83 -> 1749 | O83: =O78*$X$83 -> 1908 | P83: =P78*$X$83 -> 2067 | Q83: =Q78*$X$83 -> 2226 | R83: =R78*$X$83 -> 2385 | S83: =S78*$X$83 -> 2544 | T83: =T78*$X$83 -> 2703 | U83: =U78*$X$83 -> 2862 | V83: =V78*$X$83 -> 3021 | W83: =W78*$X$83 -> 3180 | X83: 159
A87: BMPro | B87: Высота (мм) | C87: Глубина секции | D87: Модель | E87: Подключение | F87: Артикул заказа | G87: Количество секций, шт
G88: 4 | H88: 5 | I88: 6 | J88: 7 | K88: 8 | L88: 9 | M88: 10 | N88: 11 | O88: 12 | P88: 13 | Q88: 14 | R88: 15 | S88: 16 | T88: 17 | U88: 18 | V88: 19 | W88: 20
D89: BMPro200.100 | E89: боковое | F89: BMPro200.100/X | G89: =G88*$X$89 -> 356 | H89: =H88*$X$89 -> 445 | I89: =I88*$X$89 -> 534 | J89: =J88*$X$89 -> 623 | K89: =K88*$X$89 -> 712 | L89: =L88*$X$89 -> 801 | M89: =M88*$X$89 -> 890 | N89: =N88*$X$89 -> 979 | O89: =O88*$X$89 -> 1068 | P89: =P88*$X$89 -> 1157 | Q89: =Q88*$X$89 -> 1246 | R89: =R88*$X$89 -> 1335 | S89: =S88*$X$89 -> 1424 | T89: =T88*$X$89 -> 1513 | U89: =U88*$X$89 -> 1602 | V89: =V88*$X$89 -> 1691 | W89: =W88*$X$89 -> 1780 | X89: 89
B91: 415 | C91: 80 | D91: BMPro350.80 | E91: боковое | F91: BMPro350.80/X | G91: =G88*$X$91 -> 492 | H91: =H88*$X$91 -> 615 | I91: =I88*$X$91 -> 738 | J91: =J88*$X$91 -> 861 | K91: =K88*$X$91 -> 984 | L91: =L88*$X$91 -> 1107 | M91: =M88*$X$91 -> 1230 | N91: =N88*$X$91 -> 1353 | O91: =O88*$X$91 -> 1476 | P91: =P88*$X$91 -> 1599 | Q91: =Q88*$X$91 -> 1722 | R91: =R88*$X$91 -> 1845 | S91: =S88*$X$91 -> 1968 | T91: =T88*$X$91 -> 2091 | U91: =U88*$X$91 -> 2214 | V91: =V88*$X$91 -> 2337 | W91: =W88*$X$91 -> 2460 | X91: 123
B93: 568 | C93: 80 | D93: BMPro500.80 | E93: боковое | F93: BMPro500.80/X | G93: =G88*$X$93 -> 636 | H93: =H88*$X$93 -> 795 | I93: =I88*$X$93 -> 954 | J93: =J88*$X$93 -> 1113 | K93: =K88*$X$93 -> 1272 | L93: =L88*$X$93 -> 1431 | M93: =M88*$X$93 -> 1590 | N93: =N88*$X$93 -> 1749 | O93: =O88*$X$93 -> 1908 | P93: =P88*$X$93 -> 2067 | Q93: =Q88*$X$93 -> 2226 | R93: =R88*$X$93 -> 2385 | S93: =S88*$X$93 -> 2544 | T93: =T88*$X$93 -> 2703 | U93: =U88*$X$93 -> 2862 | V93: =V88*$X$93 -> 3021 | W93: =W88*$X$93 -> 3180 | X93: 159
B95: 568 | C95: 100 | D95: BMPro500.100 | E95: боковое | F95: BMPro500.100/X | G95: =G88*$X$95 -> 676 | H95: =H88*$X$95 -> 845 | I95: =I88*$X$95 -> 1014 | J95: =J88*$X$95 -> 1183 | K95: =K88*$X$95 -> 1352 | L95: =L88*$X$95 -> 1521 | M95: =M88*$X$95 -> 1690 | N95: =N88*$X$95 -> 1859 | O95: =O88*$X$95 -> 2028 | P95: =P88*$X$95 -> 2197 | Q95: =Q88*$X$95 -> 2366 | R95: =R88*$X$95 -> 2535 | S95: =S88*$X$95 -> 2704 | T95: =T88*$X$95 -> 2873 | U95: =U88*$X$95 -> 3042 | V95: =V88*$X$95 -> 3211 | W95: =W88*$X$95 -> 3380 | X95: 169

Sheet t BM нижнее (hidden)
A2: Секционные радиаторы SPL ALHeat / ALEco / ALPro / BMHeat / BMEco / BMPro с боковым подключением
A5: SPL AL / BM | D5: Длина, см | E5: Высота, см | F5: Тип | G5: ПРИМЕЧАНИЕ
D6: 150 | E6: 30 | F6: 22
D7: Необходимая мощность, Вт | E7: ∆t | F7: LMTD
D8: 3500 | E8: =(CEILING((D10+E10)/2-F10,1)) -> 70 | F8: =(D10-E10)/LN((D10-F10)/(E10-F10)) -> 68.91512662
D9: tвх | E9: tвых | F9: tвн
D10: 105 | E10: 75 | F10: 20
A13: BMHeat | B13: Высота (мм) | C13: Глубина секции | D13: Модель | E13: Подключение | F13: Артикул заказа | G13: Количество секций, шт
G14: 4 | H14: 5 | I14: 6 | J14: 7 | K14: 8 | L14: 9 | M14: 10 | N14: 11 | O14: 12 | P14: 13 | Q14: 14 | R14: 15 | S14: 16 | T14: 17 | U14: 18 | V14: 19 | W14: 20
P15: Длина, мм
G16: =80*4 -> 320 | H16: =80*5 -> 400 | I16: =80*6 -> 480 | J16: =80*7 -> 560 | K16: =80*8 -> 640 | L16: =80*9 -> 720 | M16: =80*10 -> 800 | N16: =80*11 -> 880 | O16: =80*12 -> 960 | P16: =80*13 -> 1040 | Q16: =80*14 -> 1120 | R16: =80*15 -> 1200 | S16: =80*16 -> 1280 | T16: =80*17 -> 1360 | U16: =80*18 -> 1440 | V16: =80*19 -> 1520 | W16: =80*20 -> 1600
D17: BMVR350.90 / BMVL350.90 | E17: нижнее правое / нижнее левое | F17: BMVR350.90/X / BMVL350.90/X | G17: 532 | H17: 665 | I17: 798 | J17: 931 | K17: 1064 | L17: 1197 | M17: 1330 | N17: 1463 | O17: 1596 | P17: 1729 | Q17: 1862 | R17: 1995 | S17: 2128 | T17: 2261 | U17: 2394 | V17: 2527 | W17: 2660
A21: BMPro | B21: Высота (мм) | C21: Глубина секции | D21: Модель | E21: Подключение | F21: Артикул заказа | G21: Количество секций, шт
G22: 4 | H22: 5 | I22: 6 | J22: 7 | K22: 8 | L22: 9 | M22: 10 | N22: 11 | O22: 12 | P22: 13 | Q22: 14 | R22: 15 | S22: 16 | T22: 17 | U22: 18 | V22: 19 | W22: 20
D23: BMVR200.100 / BMVL200.100 | E23: нижнее правое / нижнее левое | F23: BMVR200.100/X / BMVL200.100/X | G23: 356 | H23: 445 | I23: 534 | J23: 623 | K23: 712 | L23: 801 | M23: 890 | N23: 979 | O23: 1068 | P23: 1157 | Q23: 1246 | R23: 1335 | S23: 1424 | T23: 1513 | U23: 1602 | V23: 1691 | W23: 1780
B25: 568 | C25: 100 | D25: BMVR500.100 / BMVL500.100 | E25: нижнее правое / нижнее левое | F25: BMVR500.100/X / BMVL500.100/X | G25: 676 | H25: 845 | I25: 1014 | J25: 1183 | K25: 1352 | L25: 1521 | M25: 1690 | N25: 1859 | O25: 2028 | P25: 2197 | Q25: 2366 | R25: 2535 | S25: 2704 | T25: 2873 | U25: 3042 | V25: 3211 | W25: 3380
